fUSD/lending_fUSD_20250716
["ID","MTS","AMOUNT","RATE_DAILY","PERIOD"]
[372473112,1752658251667,-189.494592,0.00021917,2]
[372473114,1752658251677,-4170.55,0.00021917,2]
[372473116,1752658251687,-529.01,0.00021917,2]
[372473118,1752658251697,-189.494592,0.00021917,2]
[372473119,1752658251706,-189.494592,0.00021917,2]
[372473121,1752658251716,-151.0,0.00021917,2]
[372473123,1752658251729,-189.494592,0.00021917,2]
[372473125,1752658251739,-151.0,0.00021917,2]
[372473126,1752658251749,-189.494592,0.00021917,2]
[372473128,1752658251759,-460.0,0.00021917,2]
[372473130,1752658251768,-189.494592,0.00021917,2]
[372473132,1752658251777,-151.0,0.00021917,2]
[372473134,1752658251787,-189.494592,0.00021917,2]
[372473135,1752658251798,-151.0,0.00021917,2]
[372473137,1752658251807,-460.0,0.00021917,2]
[372473139,1752658251817,-189.494592,0.00021917,2]
[372473141,1752658251827,-151.0,0.00021917,2]
[372473143,1752658251842,-189.494592,0.00021917,2]
[372473145,1752658251852,-151.0,0.00021917,2]
[372473147,1752658251863,-189.494592,0.00021917,2]
[372473148,1752658251873,-189.494592,0.00021917,2]
[372473150,1752658251883,-151.0,0.00021917,2]
[372473152,1752658251895,-151.0,0.00021917,2]
[372473154,1752658251904,-151.0,0.00021917,2]
[372473156,1752658251914,-460.0,0.00021917,2]
[372473158,1752658251924,-151.0,0.00021917,2]
[372473160,1752658251934,-151.0,0.00021917,2]
[372473162,1752658251944,-461.29629453,0.00021917,2]
[372473164,1752658251954,-151.0,0.00021917,2]
[372473166,1752658251965,-460.0,0.00021917,2]
[372473168,1752658251975,-151.0,0.00021917,2]
[372473170,1752658251985,-460.0,0.00021917,2]
[372473172,1752658251996,-221.656819,0.00021917,2]
[372473174,1752658252006,-2037.96,0.00021917,2]
[372473176,1752658252016,-487.26,0.00021917,2]
[372473178,1752658252026,-2037.96,0.00021917,2]
[372473180,1752658252036,-460.0,0.00021917,2]
[372473183,1752658252046,-460.0,0.00021917,2]
[372473185,1752658252056,-1433.66,0.00021917,2]
[372473187,1752658252066,-460.0,0.00021917,2]
[372473189,1752658252077,-460.0,0.00021917,2]
[372473191,1752658252087,-2037.96,0.00021917,2]
[372473193,1752658252097,-2037.96,0.00021917,2]
[372473195,1752658252107,-2037.96,0.00021917,2]
[372473197,1752658252117,-460.0,0.00021917,2]
[372473199,1752658252127,-2037.96,0.00021917,2]
[372473201,1752658252137,-2037.96,0.00021917,2]
[372473203,1752658252147,-472.31,0.00021917,2]
[372473204,1752658252157,-2037.96,0.00021917,2]
[372473205,1752658252168,-2037.96,0.00021917,2]
[372473206,1752658252178,-2037.96,0.00021917,2]
[372473207,1752658252189,-2037.96,0.00021917,2]
[372473208,1752658252199,-675.31,0.00021917,2]
[372473209,1752658252209,-2037.96,0.00021917,2]
[372473210,1752658252219,-460.0,0.00021917,2]
[372473211,1752658252230,-2037.96,0.00021917,2]
[372473212,1752658252240,-460.0,0.00021917,2]
[372473213,1752658252250,-2037.96,0.00021917,2]
[372473214,1752658252260,-460.0,0.00021917,2]
[372473215,1752658252270,-460.0,0.00021917,2]
[372473216,1752658252285,-460.0,0.00021917,2]
[372473217,1752658252295,-981.58,0.00021917,2]
[372473218,1752658252305,-460.0,0.00021917,2]
[372473220,1752658252316,-666.89,0.00021917,2]
[372473222,1752658252326,-460.0,0.00021917,2]
[372473224,1752658252337,-2675.39,0.00021917,2]
[372473226,1752658252347,-978.38,0.00021917,2]
[372473228,1752658252357,-625.5,0.00021917,2]
[372473230,1752658252368,-460.0,0.00021917,2]
[372473232,1752658252378,-500.0,0.00021917,2]
[372473234,1752658252388,-514.39869453,0.00021917,2]
[372473236,1752658252398,-460.0,0.00021917,2]
[372473238,1752658252408,-252.877039,0.00021917,2]
[372473240,1752658252419,-460.0,0.00021917,2]
[372473243,1752658252429,-460.0,0.00021917,2]
[372473245,1752658252440,-574.06,0.00021917,2]
[372473247,1752658252451,-151.0,0.00021917,2]
[372473249,1752658252463,-151.0,0.00021917,2]
[372473251,1752658252474,-151.0,0.00021917,2]
[372473253,1752658252485,-460.0,0.00021917,2]
[372473255,1752658252495,-2122.75,0.00021917,2]
[372473257,1752658252506,-161.618399,0.00021917,2]
[372473259,1752658252517,-252.877039,0.00021917,2]
[372473261,1752658252527,-460.0,0.00021917,2]
[372473263,1752658252539,-460.0,0.00021917,2]
[372473266,1752658252552,-252.877039,0.00021917,2]
[372473268,1752658252563,-252.877039,0.00021917,2]
[372473270,1752658252573,-547.29,0.00021917,2]
[372473272,1752658252584,-500.0,0.00021917,2]
[372473274,1752658252595,-252.877039,0.00021917,2]
[372473276,1752658252605,-500.0,0.00021917,2]
[372473278,1752658252615,-252.877039,0.00021917,2]
[372473280,1752658252627,-500.0,0.00021917,2]
[372473282,1752658252637,-460.0,0.00021917,2]
[372473284,1752658252648,-460.0,0.00021917,2]
[372473287,1752658252658,-500.0,0.00021917,2]
[372473289,1752658252668,-460.0,0.00021917,2]
[372473291,1752658252679,-500.0,0.00021917,2]
[372473293,1752658252689,-500.0,0.00021917,2]
[372473295,1752658252699,-1556.05,0.00021917,2]
[372473297,1752658252708,-500.0,0.00021917,2]
[372473300,1752658252727,-500.0,0.00021917,2]
[372473302,1752658252738,-500.0,0.00021917,2]
[372473304,1752658252748,-252.877039,0.00021917,2]
[372473306,1752658252758,-460.0,0.00021917,2]
[372473308,1752658252771,-252.877039,0.00021917,2]
[372473310,1752658252782,-1245.182208,0.00021917,2]
[372473312,1752658252792,-1245.182208,0.00021917,2]
[372473314,1752658252806,-252.877039,0.00021917,2]
[372473316,1752658252817,-460.0,0.00021917,2]
[372473318,1752658252827,-1245.182208,0.00021917,2]
[372473321,1752658252838,-252.877039,0.00021917,2]
[372473323,1752658252848,-252.877039,0.00021917,2]
[372473325,1752658252858,-460.0,0.00021917,2]
[372473327,1752658252870,-1245.182208,0.00021917,2]
[372473329,1752658252880,-252.877039,0.00021917,2]
[372473331,1752658252890,-1245.182208,0.00021917,2]
[372473333,1752658252900,-1245.182208,0.00021917,2]
[372473335,1752658252911,-3081.77,0.00021917,2]
[372473337,1752658252921,-460.0,0.00021917,2]
[372473339,1752658252931,-460.0,0.00021917,2]
[372473341,1752658252941,-1053.87,0.00021917,2]
[372473343,1752658252951,-460.0,0.00021917,2]
[372473346,1752658252961,-1245.182208,0.00021917,2]
[372473348,1752658252972,-1245.182208,0.00021917,2]
[372473350,1752658252982,-1245.182208,0.00021917,2]
[372473352,1752658252992,-1245.182208,0.00021917,2]
[372473354,1752658253002,-1245.182208,0.00021917,2]
[372473356,1752658253012,-460.0,0.00021917,2]
[372473358,1752658253023,-1016.71,0.00021917,2]
[372473360,1752658253033,-1245.182208,0.00021917,2]
[372473362,1752658253044,-2933.04,0.00021917,2]
[372473364,1752658253055,-460.0,0.00021917,2]
[372473367,1752658253064,-461.24157071,0.00021917,2]
[372473369,1752658253074,-1718.98,0.00021917,2]
[372473371,1752658253084,-3511.33,0.00021917,2]
[372473373,1752658253094,-460.0,0.00021917,2]
[372473375,1752658253104,-460.0,0.00021917,2]
[372473377,1752658253114,-1394.72,0.00021917,2]
[372473379,1752658253124,-460.0,0.00021917,2]
[372473381,1752658253134,-460.0,0.00021917,2]
[372473383,1752658253144,-1477.34,0.00021917,2]
[372473386,1752658253154,-460.0,0.00021917,2]
[372473388,1752658253175,-835.47,0.00021917,2]
[372473391,1752658253187,-151.0,0.00021917,2]
[372473393,1752658253197,-460.0,0.00021917,2]
[372473395,1752658253208,-460.0,0.00021917,2]
[372473397,1752658253219,-848.22,0.00021917,2]
[372473399,1752658253230,-460.0,0.00021917,2]
[372473401,1752658253241,-609.09,0.00021917,2]
[372473403,1752658253252,-460.0,0.00021917,2]
[372473405,1752658253262,-460.0,0.00021917,2]
[372473408,1752658253273,-460.0,0.00021917,2]
[372473410,1752658253284,-460.0,0.00021917,2]
[372473412,1752658253296,-460.0,0.00021917,2]
[372473414,1752658253307,-651.58,0.00021917,2]
[372473416,1752658253318,-3433.63,0.00021917,2]
[372473418,1752658253328,-460.0,0.00021917,2]
[372473420,1752658253339,-460.0,0.00021917,2]
[372473422,1752658253350,-833.3,0.00021917,2]
[372473424,1752658253362,-2905.13,0.00021917,2]
[372473426,1752658253372,-212.856762,0.00021917,2]
[372473428,1752658253383,-460.0,0.00021917,2]
[372473430,1752658253394,-1053.08,0.00021917,2]
[372473433,1752658253405,-616.65,0.00021917,2]
[372473435,1752658253415,-460.0,0.00021917,2]
[372473437,1752658253427,-460.0,0.00021917,2]
[372473439,1752658253437,-460.0,0.00021917,2]
[372473441,1752658253449,-460.0,0.00021917,2]
[372473443,1752658253459,-460.0,0.00021917,2]
[372473445,1752658253469,-460.0,0.00021917,2]
[372473447,1752658253480,-460.0,0.00021917,2]
[372473449,1752658253491,-511.05,0.00021917,2]
[372473452,1752658253501,-1318.19,0.00021917,2]
[372473454,1752658253512,-1775.01,0.00021917,2]
[372473456,1752658253523,-511.05,0.00021917,2]
[372473458,1752658253533,-511.05,0.00021917,2]
[372473460,1752658253543,-511.05,0.00021917,2]
[372473462,1752658253553,-511.05,0.00021917,2]
[372473464,1752658253564,-460.0,0.00021917,2]
[372473466,1752658253574,-511.05,0.00021917,2]
[372473468,1752658253587,-511.05,0.00021917,2]
[372473471,1752658253598,-511.05,0.00021917,2]
[372473473,1752658253613,-490.37,0.00021917,2]
[372473475,1752658253624,-511.05,0.00021917,2]
[372473477,1752658253635,-511.05,0.00021917,2]
[372473479,1752658253646,-460.0,0.00021917,2]
[372473482,1752658253656,-460.0,0.00021917,2]
[372473484,1752658253667,-460.0,0.00021917,2]
[372473486,1752658253677,-2065.43,0.00021917,2]
[372473488,1752658253688,-511.05,0.00021917,2]
[372473490,1752658253699,-511.05,0.00021917,2]
[372473492,1752658253709,-460.0,0.00021917,2]
[372473494,1752658253723,-511.05,0.00021917,2]
[372473496,1752658253734,-460.0,0.00021917,2]
[372473498,1752658253744,-511.05,0.00021917,2]
[372473500,1752658253755,-1036.67,0.00021917,2]
[372473502,1752658253766,-460.0,0.00021917,2]
[372473505,1752658253777,-1861.51,0.00021917,2]
[372473507,1752658253789,-460.0,0.00021917,2]
[372473509,1752658253799,-460.0,0.00021917,2]
[372473511,1752658253810,-691.15,0.00021917,2]
[372473513,1752658253820,-460.0,0.00021917,2]
[372473515,1752658253831,-832.14,0.00021917,2]
[372473517,1752658253841,-460.0,0.00021917,2]
[372473519,1752658253851,-460.0,0.00021917,2]
[372473521,1752658253861,-460.0,0.00021917,2]
[372473523,1752658253871,-460.0,0.00021917,2]
[372473525,1752658253886,-151.0,0.00021917,2]
[372473527,1752658253897,-460.0,0.00021917,2]
[372473530,1752658253908,-460.0,0.00021917,2]
[372473532,1752658253918,-2276.57,0.00021917,2]
[372473534,1752658253929,-460.0,0.00021917,2]
[372473536,1752658253939,-460.0,0.00021917,2]
[372473538,1752658253950,-460.0,0.00021917,2]
[372473540,1752658253960,-460.0,0.00021917,2]
[372473542,1752658253971,-1069.29,0.00021917,2]
[372473544,1752658253982,-2458.42,0.00021917,2]
[372473573,1752658254261,-460.0,0.00021917,2]
[372473576,1752658254273,-1760.37,0.00021917,2]
[372473578,1752658254282,-460.0,0.00021917,2]
[372473580,1752658254292,-460.0,0.00021917,2]
[372473581,1752658254302,-635.38,0.00021917,2]
[372473584,1752658254311,-473.68,0.00021917,2]
[372473585,1752658254321,-460.0,0.00021917,2]
[372473587,1752658254331,-460.0,0.00021917,2]
[372473589,1752658254340,-460.0,0.00021917,2]
[372473592,1752658254350,-460.0,0.00021917,2]
[372473594,1752658254360,-462.0086326,0.00021917,2]
[372473595,1752658254370,-649.34,0.00021917,2]
[372473598,1752658254381,-1013.09,0.00021917,2]
[372473600,1752658254391,-168.64369747,0.00021917,2]
[372473601,1752658254400,-495.38001186,0.00021917,2]
[372473603,1752658254411,-460.0,0.00021917,2]
[372473606,1752658254420,-467.15,0.00021917,2]
[372473608,1752658254431,-460.0,0.00021917,2]
[372473610,1752658254440,-460.0,0.00021917,2]
[372473612,1752658254449,-460.0,0.00021917,2]
[372473614,1752658254458,-1959.18,0.00021917,2]
[372473616,1752658254467,-737.04,0.00021917,2]
[372473618,1752658254476,-460.0,0.00021917,2]
[372473619,1752658254486,-460.0,0.00021917,2]
[372473622,1752658254495,-460.0,0.00021917,2]
[372473624,1752658254505,-460.0,0.00021917,2]
[372473625,1752658254514,-460.0,0.00021917,2]
[372473627,1752658254523,-2111.62,0.00021917,2]
[372473629,1752658254532,-460.0,0.00021917,2]
[372473631,1752658254541,-460.0,0.00021917,2]
[372473633,1752658254551,-460.0,0.00021917,2]
[372473635,1752658254560,-1160.13,0.00021917,2]
[372473637,1752658254570,-460.0,0.00021917,2]
[372473639,1752658254579,-1275.35,0.00021917,2]
[372473642,1752658254589,-518.17,0.00021917,5]
[372473644,1752658254600,-803.71,0.00021917,2]
[372473646,1752658254609,-460.0,0.00021917,2]
[372473648,1752658254619,-561.85,0.00021917,2]
[372473650,1752658254630,-507.69,0.00021917,2]
[372473653,1752658254650,-500.0,0.00021917,2]
[372473655,1752658254659,-460.0,0.00021917,2]
[372473657,1752658254669,-460.0,0.00021917,2]
[372473659,1752658254679,-460.0,0.00021917,2]
[372473661,1752658254689,-500.0,0.00021917,2]
[372473663,1752658254699,-1473.13,0.00021917,2]
[372473665,1752658254708,-500.0,0.00021917,2]
[372473667,1752658254718,-460.0,0.00021917,2]
[372473669,1752658254729,-460.0,0.00021917,2]
[372473671,1752658254739,-1118.98,0.00021917,2]
[372473673,1752658254748,-460.0,0.00021917,2]
[372473675,1752658254759,-460.0,0.00021917,2]
[372473677,1752658254768,-460.0,0.00021917,2]
[372473679,1752658254778,-460.0,0.00021917,2]
[372473681,1752658254787,-508.14680815,0.00021917,2]
[372473683,1752658254797,-827.8,0.00021917,2]
[372473685,1752658254807,-956.69,0.00021917,2]
[372473687,1752658254816,-460.0,0.00021917,2]
[372473688,1752658254825,-460.0,0.00021917,2]
[372473691,1752658254835,-460.0,0.00021917,2]
[372473693,1752658254845,-550.41,0.00021917,2]
[372473694,1752658254855,-2926.69,0.00021917,2]
[372473697,1752658254864,-1640.39,0.00021917,2]
[372473698,1752658254876,-566.96,0.00021917,2]
[372473700,1752658254886,-566.96,0.00021917,2]
[372473703,1752658254897,-566.96,0.00021917,2]
[372473704,1752658254906,-566.96,0.00021917,2]
[372473705,1752658254916,-566.96,0.00021917,2]
[372473706,1752658254925,-460.0,0.00021917,2]
[372473707,1752658254934,-460.0,0.00021917,2]
[372473708,1752658254944,-566.96,0.00021917,2]
[372473709,1752658254953,-566.96,0.00021917,2]
[372473710,1752658254963,-566.96,0.00021917,2]
[372473711,1752658254977,-566.96,0.00021917,2]
[372473712,1752658254987,-566.96,0.00021917,2]
[372473713,1752658254997,-566.96,0.00021917,2]
[372473715,1752658255007,-566.96,0.00021917,2]
[372473717,1752658255017,-497.88679973,0.00021917,2]
[372473719,1752658255027,-566.96,0.00021917,2]
[372473722,1752658255037,-566.96,0.00021917,2]
[372473724,1752658255048,-566.96,0.00021917,2]
[372473726,1752658255058,-473.95702472,0.00021917,2]
[372473728,1752658255068,-1262.36,0.00021917,2]
[372473730,1752658255078,-504.37,0.00021917,2]
[372473732,1752658255088,-460.0,0.00021917,2]
[372473734,1752658255098,-545.97,0.00021917,2]
[372473736,1752658255107,-592.66,0.00021917,2]
[372473738,1752658255116,-1487.96,0.00021917,2]
[372473740,1752658255127,-252.24456507,0.00021917,2]
[372473742,1752658255137,-3088.23,0.00021917,2]
[372473744,1752658255146,-460.0,0.00021917,2]
[372473746,1752658255156,-1047.5,0.00021917,2]
[372473748,1752658255166,-460.0,0.00021917,2]
[372473750,1752658255176,-3599.53,0.00021917,2]
[372473752,1752658255186,-460.0,0.00021917,2]
[372473754,1752658255195,-460.0,0.00021917,2]
[372473756,1752658255206,-611.04,0.00021917,2]
[372473758,1752658255216,-2883.53,0.00021917,2]
[372473760,1752658255226,-509.27,0.00021917,2]
[372473762,1752658255236,-460.0,0.00021917,2]
[372473764,1752658255246,-685.04,0.00021917,2]
[372473766,1752658255256,-460.0,0.00021917,2]
[372473768,1752658255266,-1146.18,0.00021917,2]
[372473770,1752658255275,-460.0,0.00021917,2]
[372473772,1752658255286,-1096.49,0.00021917,2]
[372473774,1752658255296,-460.0,0.00021917,2]
[372473776,1752658255305,-2648.19,0.00021917,2]
[372473778,1752658255315,-1738.58,0.00021917,2]
[372473780,1752658255325,-902.56,0.00021917,2]
[372473782,1752658255335,-773.54,0.00021917,2]
[372473784,1752658255345,-460.0,0.00021917,2]
[372473786,1752658255355,-150.98966253,0.00021917,2]
[372473788,1752658255364,-460.0,0.00021917,2]
[372473790,1752658255375,-460.0,0.00021917,2]
[372473792,1752658255385,-499.42348266,0.00021917,2]
[372473795,1752658255394,-460.0,0.00021917,2]
[372473796,1752658255405,-460.0,0.00021917,2]
[372473799,1752658255419,-460.0,0.00021917,2]
[372473801,1752658255429,-486.62,0.00021917,2]
[372473803,1752658255439,-2954.84,0.00021917,2]
[372473805,1752658255450,-2453.81,0.00021917,2]
[372473807,1752658255460,-1324.1,0.00021917,2]
[372473809,1752658255470,-460.0,0.00021917,2]
[372473811,1752658255479,-460.0,0.00021917,2]
[372473813,1752658255489,-1251.59,0.00021917,2]
[372473815,1752658255499,-756.05,0.00021917,2]
[372473818,1752658255510,-1446.3,0.00021917,2]
[372473820,1752658255519,-460.0,0.00021917,2]
[372473822,1752658255529,-460.0,0.00021917,2]
[372473824,1752658255539,-460.0,0.00021917,2]
[372473826,1752658255549,-1290.55,0.00021917,2]
[372473828,1752658255559,-846.69,0.00021917,2]
[372473830,1752658255568,-875.13,0.00021917,2]
[372473832,1752658255578,-1002.61,0.00021917,2]
[372473834,1752658255587,-460.0,0.00021917,2]
[372473836,1752658255597,-460.0,0.00021917,2]
[372473838,1752658255608,-2856.77,0.00021917,2]
[372473840,1752658255617,-460.0,0.00021917,2]
[372473842,1752658255628,-460.0,0.00021917,2]
[372473844,1752658255639,-569.91,0.00021917,2]
[372473846,1752658255657,-460.0,0.00021917,2]
[372473848,1752658255666,-460.0,0.00021917,2]
[372473850,1752658255676,-1334.81,0.00021917,2]
[372473852,1752658255686,-1520.45,0.00021917,2]
[372473854,1752658255696,-2519.51,0.00021917,2]
[372473856,1752658255706,-2519.51,0.00021917,2]
[372473858,1752658255717,-2519.51,0.00021917,2]
[372473860,1752658255728,-547.41,0.00021917,2]
[372473862,1752658255738,-2519.51,0.00021917,2]
[372473864,1752658255747,-2519.51,0.00021917,2]
[372473867,1752658255759,-2519.51,0.00021917,2]
[372473869,1752658255770,-559.86,0.00021917,2]
[372473871,1752658255780,-2519.51,0.00021917,2]
[372473873,1752658255791,-2519.51,0.00021917,2]
[372473875,1752658255801,-385.561155,0.00021917,2]
[372473876,1752658255811,-1370.19,0.00021917,2]
[372473879,1752658255821,-1178.74,0.00021917,2]
[372473881,1752658255830,-460.0,0.00021917,2]
[372473883,1752658255840,-460.0,0.00021917,2]
[372473885,1752658255850,-460.0,0.00021917,2]
[372473887,1752658255859,-460.0,0.00021917,2]
[372473889,1752658255873,-460.0,0.00021917,2]
[372473891,1752658255884,-500.80628056,0.00021917,2]
[372473893,1752658255893,-460.0,0.00021917,2]
[372473895,1752658255903,-979.84,0.00021917,2]
[372473897,1752658255913,-2958.36,0.00021917,2]
[372473899,1752658255923,-2045.38,0.00021917,2]
[372473902,1752658255933,-979.84,0.00021917,2]
[372473904,1752658255943,-673.85,0.00021917,2]
[372473906,1752658255953,-460.0,0.00021917,2]
[372473908,1752658255962,-460.0,0.00021917,2]
[372473910,1752658255972,-2908.18,0.00021917,2]
[372473912,1752658255982,-460.0,0.00021917,2]
[372473914,1752658255992,-1642.92,0.00021917,2]
[372473916,1752658256001,-2736.56,0.00021917,2]
[372473918,1752658256012,-516.95,0.00021917,2]
[372473920,1752658256022,-460.0,0.00021917,2]
[372473922,1752658256032,-516.95,0.00021917,2]
[372473924,1752658256044,-516.95,0.00021917,2]
[372473926,1752658256054,-516.95,0.00021917,2]
[372473928,1752658256063,-516.95,0.00021917,2]
[372473930,1752658256072,-460.0,0.00021917,2]
[372473932,1752658256082,-516.95,0.00021917,2]
[372473934,1752658256092,-516.95,0.00021917,2]
[372473936,1752658256103,-516.95,0.00021917,2]
[372473938,1752658256112,-2515.76,0.00021917,2]
[372473939,1752658256122,-516.95,0.00021917,2]
[372473940,1752658256132,-460.0,0.00021917,2]
[372473941,1752658256142,-516.95,0.00021917,2]
[372473942,1752658256151,-461.27931061,0.00021917,2]
[372473943,1752658256161,-516.95,0.00021917,2]
[372473944,1752658256171,-516.95,0.00021917,2]
[372473945,1752658256181,-460.0,0.00021917,2]
[372473946,1752658256190,-516.95,0.00021917,2]
[372473947,1752658256200,-460.0,0.00021917,2]
[372473948,1752658256210,-516.95,0.00021917,2]
[372473949,1752658256220,-298.933331,0.00021917,2]
[372473950,1752658256230,-460.0,0.00021917,2]
[372473951,1752658256240,-460.0,0.00021917,2]
[372473952,1752658256251,-1552.84,0.00021917,2]
[372473954,1752658256261,-460.0,0.00021917,2]
[372473956,1752658256271,-298.933331,0.00021917,2]
[372473958,1752658256282,-837.86,0.00021917,2]
[372473960,1752658256291,-298.933331,0.00021917,2]
[372473962,1752658256301,-298.933331,0.00021917,2]
[372473964,1752658256310,-641.86,0.00021917,2]
[372473966,1752658256320,-298.933331,0.00021917,2]
[372473968,1752658256330,-460.0,0.00021917,2]
[372473970,1752658256339,-298.933331,0.00021917,2]
[372473972,1752658256349,-460.0,0.00021917,2]
[372473974,1752658256358,-1459.96,0.00021917,2]
[372473976,1752658256368,-574.34,0.00021917,2]
[372473978,1752658256379,-544.22,0.00021917,2]
[372473980,1752658256388,-151.0,0.00021917,2]
[372473983,1752658256398,-151.0,0.00021917,2]
[372473985,1752658256408,-834.4,0.00021917,2]
[372473987,1752658256418,-460.0,0.00021917,2]
[372473989,1752658256427,-151.0,0.00021917,2]
[372473991,1752658256437,-151.0,0.00021917,2]
[372473992,1752658256447,-460.0,0.00021917,2]
[372473994,1752658256460,-151.0,0.00021917,2]
[372473996,1752658256473,-298.933331,0.00021917,2]
[372473998,1752658256483,-460.0,0.00021917,2]
[372474000,1752658256492,-1143.29,0.00021917,2]
[372474002,1752658256502,-460.0,0.00021917,2]
[372474004,1752658256511,-220.382076,0.00021917,2]
[372474006,1752658256524,-298.933331,0.00021917,2]
[372474008,1752658256534,-460.0,0.00021917,2]
[372474010,1752658256544,-298.933331,0.00021917,2]
[372474012,1752658256553,-298.933331,0.00021917,2]
[372474014,1752658256563,-460.0,0.00021917,2]
[372474016,1752658256573,-298.933331,0.00021917,2]
[372474018,1752658256582,-460.0,0.00021917,2]
[372474020,1752658256591,-298.933331,0.00021917,2]
[372474022,1752658256601,-460.0,0.00021917,2]
[372474024,1752658256610,-460.0,0.00021917,2]
[372474026,1752658256620,-460.0,0.00021917,2]
[372474029,1752658256630,-522.33,0.00021917,2]
[372474031,1752658256640,-460.0,0.00021917,2]
[372474033,1752658256650,-766.55,0.00021917,2]
[372474035,1752658256660,-1408.24,0.00021917,2]
[372474037,1752658256669,-851.89,0.00021917,2]
[372474039,1752658256678,-648.86,0.00021917,2]
[372474041,1752658256688,-460.0,0.00021917,2]
[372474043,1752658256697,-583.59,0.00021917,2]
[372474045,1752658256706,-460.0,0.00021917,2]
[372474047,1752658256717,-3399.89,0.00021917,2]
[372474049,1752658256733,-460.0,0.00021917,2]
[372474051,1752658256743,-460.0,0.00021917,2]
[372474053,1752658256752,-460.0,0.00021917,2]
[372474055,1752658256762,-476.16,0.00021917,2]
[372474057,1752658256771,-2061.12,0.00021917,2]
[372474059,1752658256782,-460.0,0.00021917,2]
[372474061,1752658256792,-1111.17,0.00021917,2]
[372474063,1752658256801,-413.2960668,0.00021917,2]
[372474065,1752658256810,-573.18,0.00021917,2]
[372474067,1752658256819,-460.0,0.00021917,2]
[372474069,1752658256829,-460.0,0.00021917,2]
[372474070,1752658256839,-671.75,0.00021917,2]
[372474073,1752658256849,-460.0,0.00021917,2]
[372474075,1752658256858,-576.12,0.00021917,2]
[372474076,1752658256868,-589.15,0.00021917,2]
[372474078,1752658256878,-460.0,0.00021917,2]
[372474081,1752658256888,-556.85,0.00021917,2]
[372474083,1752658256898,-1365.14,0.00021917,2]
[372474085,1752658256907,-460.0,0.00021917,2]
[372474087,1752658256918,-4044.73,0.00021917,2]
[372474088,1752658256927,-2344.33,0.00021917,2]
[372474091,1752658256937,-460.0,0.00021917,2]
[372474093,1752658256947,-1963.69,0.00021917,2]
[372474095,1752658256956,-460.0,0.00021917,2]
[372474097,1752658256966,-1936.87,0.00021917,2]
[372474099,1752658256978,-460.0,0.00021917,2]
[372474101,1752658256988,-460.0,0.00021917,2]
[372474103,1752658256998,-544.98123664,0.00021917,2]
[372474105,1752658257007,-460.0,0.00021917,2]
[372474107,1752658257017,-460.0,0.00021917,2]
[372474109,1752658257028,-3391.16,0.00021917,2]
[372474110,1752658257038,-460.0,0.00021917,2]
[372474111,1752658257048,-2946.15,0.00021917,2]
[372474112,1752658257058,-2389.0,0.00021917,2]
[372474113,1752658257067,-460.0,0.00021917,2]
[372474114,1752658257077,-460.0,0.00021917,2]